[Event "Manhem Chess Week-Elo 2019"]
[Site "Moelnlycke"]
[Date "2019.08.14"]
[Round "5.7"]
[White "Jacobsson, Lennart"]
[Black "Johansson, Eva"]
[Result "1/2-1/2"]
[ECO "B07"]
[WhiteElo "1754"]
[BlackElo "1869"]
[Annotator "NA"]
[PlyCount "69"]
[EventDate "2019.08.10"]
[EventType "tourn"]
[EventCountry "SWE"]
[SourceTitle "playchess.com"]
[Source "ChessBase"]
[SourceQuality "1"]
[TimeControl "40/5400+30:1800+30"]

1. e4 {[%emt 0:00:00]} d6 {[%emt 0:00:00]} 2. d4 {[%emt 0:00:00]} Nf6 {[%emt 0:00:00]} 3. Nc3 {[%emt 0:00:00]} g6 {[%emt 0:00:00]} 4. Bg5 {[%emt 0:00:20]} c6 {[%emt 0:00:43]} 5. f4 {[%emt 0:01:24]} Bg7 {[%emt 0:02:49]} 6. Nf3 {[%emt 0:01:12]} O-O {[%emt 0:01:42]} 7. Be2 {[%emt 0:01:12]} b5 {[%emt 0:04:20]} 8. e5 {[%emt 0:11:27]} Ne8 {[%emt 0:05:24]} 9. O-O {[%emt 0:08:47]} Nc7 {[%emt 0:02:47]} 10. Ne4 {[%emt 0:13:37]} Ne6 {[%emt 0:03:55]} 11. Kh1 {[%emt 0:05:49]} Nxg5 {[%emt 0:01:14]} 12. Nfxg5 {[%emt 0:02:12]} h6 {[%emt 0:02:52]} 13. Nf3 {[%emt 0:00:10]} Qc7 {[%emt 0:02:14]} 14. Ng3 {[%emt 0:01:20]} a6 {[%emt 0:01:55]} 15. Bd3 {[%emt 0:00:24]} dxe5 {[%emt 0:03:15]} 16. dxe5 {[%emt 0:06:23]} e6 {[%emt 0:01:47]} 17. Ne4 {[%emt 0:01:06]} c5 {[%emt 0:05:42]} 18. Nd6 {[%emt 0:02:54]} Bd7 {[%emt 0:00:21]} 19. Be4 {[%emt 0:09:21]} Bc6 {[%emt 0:01:19]} 20. Qe2 {[%emt 0:02:35]} Rd8 {[%emt 0:06:14]} 21. Rad1 {[%emt 0:05:10]} Bf8 {[%emt 0:03:21]} 22. Bxc6 {[%emt 0:00:58]} Nxc6 {[%emt 0:02:15]} 23. Ne4 {[%emt 0:00:58]} Ne7 {[%emt 0:02:30]} 24. Nf6+ {[%emt 0:03:36]} Kg7 {[%emt 0:00:21]} 25. Nd2 {[%emt 0:01:01]} Nf5 {[%emt 0:03:18]} 26. c3 {[%emt 0:00:58]} c4 {[%emt 0:05:28]} 27. Nde4 {[%emt 0:03:38]} Qc6 {[%emt 0:03:32]} 28. Rxd8 {[%emt 0:01:54]} Rxd8 {[%emt 0:00:20]} 29. Rd1 {[%emt 0:00:24]} Qc7 {[%emt 0:05:16]} 30. Rd2 {[%emt 0:01:30]} Be7 {[%emt 0:06:14]} 31. Qe1 {[%emt 0:02:14]} Kf8 {[%emt 0:07:42]} 32. Nh7+ {[%emt 0:01:50]} Kg7 {[%emt 0:00:19]} 33. Nhf6 {[%emt 0:00:03]} Kf8 {[%emt 0:00:27]} 34. Nh7+ {[%emt 0:00:27]} Kg7 {[%emt 0:00:07]} 35. Nhf6 {[%emt 0:00:09]} 1/2-1/2

[Event "Manhem Chess Week-Elo 2019"]
[Site "Moelnlycke"]
[Date "2019.08.14"]
[Round "5.8"]
[White "Ziegler, Nathalie"]
[Black "Berg, Roy"]
[Result "0-1"]
[ECO "D10"]
[WhiteElo "1846"]
[BlackElo "1913"]
[Annotator "NA"]
[PlyCount "68"]
[EventDate "2019.08.10"]
[EventType "tourn"]
[EventCountry "SWE"]
[SourceTitle "playchess.com"]
[Source "ChessBase"]
[SourceQuality "1"]
[TimeControl "40/5400+30:1800+30"]

1. d4 {[%emt 0:00:00]} d5 {[%emt 0:00:01]} 2. c4 {[%emt 0:00:48]} c6 {[%emt 0:00:16]} 3. cxd5 {[%emt 0:00:45]} cxd5 {[%emt 0:00:08]} 4. Nc3 {[%emt 0:00:16]} Nf6 {[%emt 0:00:10]} 5. f3 {[%emt 0:00:41]} Nc6 {[%emt 0:12:19]} 6. e4 {[%emt 0:00:25]} e6 {[%emt 0:05:38]} 7. e5 {[%emt 0:00:18]} Nd7 {[%emt 0:00:16]} 8. f4 {[%emt 0:00:44]} Qb6 {[%emt 0:02:07]} 9. Nf3 {[%emt 0:00:28]} Be7 {[%emt 0:01:44]} 10. Be2 {[%emt 0:01:33]} f5 {[%emt 0:09:45]} 11. O-O {[%emt 0:05:42]} Nf8 {[%emt 0:02:36]} 12. Kh1 {[%emt 0:03:27]} Bd7 {[%emt 0:00:34]} 13. a3 {[%emt 0:09:12]} h6 {[%emt 0:08:01]} 14. b4 {[%emt 0:06:48]} Rc8 {[%emt 0:02:10]} 15. Na4 {[%emt 0:10:33]} Qd8 {[%emt 0:05:29]} 16. Nc5 {[%emt 0:03:36]} b6 {[%emt 0:03:09]} 17. Nb3 {[%emt 0:10:16]} Nh7 {[%emt 0:05:07]} 18. Bd2 {[%emt 0:07:32]} O-O {[%emt 0:00:35]} 19. b5 {[%emt 0:06:19]} Nb8 {[%emt 0:00:14]} 20. Qe1 {[%emt 0:04:53]} Be8 {[%emt 0:01:07]} 21. a4 {[%emt 0:05:02]} g5 {[%emt 0:01:09]} 22. a5 {[%emt 0:05:31]} g4 {[%emt 0:05:02]} 23. Ng1 {[%emt 0:00:19]} Nd7 {[%emt 0:02:32]} 24. Qd1 {[%emt 0:03:59]} h5 {[%emt 0:01:05]} 25. Qe1 {[%emt 0:02:30]} Bh4 {[%emt 0:01:35]} 26. Qd1 {[%emt 0:01:01]} Kh8 {[%emt 0:00:34]} 27. Bb4 {[%emt 0:00:19]} Rg8 {[%emt 0:00:47]} 28. axb6 {[%emt 0:00:32]} axb6 {[%emt 0:01:17]} 29. Ra7 {[%emt 0:00:29]} Bg3 {[%emt 0:04:57]} 30. hxg3 {[%emt 0:04:22]} h4 {[%emt 0:00:56]} 31. Qd3 {[%emt 0:00:20]} Rg6 {[%emt 0:02:49]} 32. Bd1 {[%emt 0:05:01]} Rh6 {[%emt 0:04:25]} 33. Ne2 {[%emt 0:00:02]} hxg3+ {[%emt 0:00:42]} 34. Kg1 {[%emt 0:00:01]} Rh1+ {[%emt 0:00:23]} 0-1

[Event "Manhem Chess Week-Elo 2019"]
[Site "Moelnlycke"]
[Date "2019.08.15"]
[Round "6.1"]
[White "Bengtsson, Jonas"]
[Black "Berggren Torell, Harald"]
[Result "1-0"]
[ECO "E94"]
[WhiteElo "2145"]
[BlackElo "2137"]
[Annotator "NA"]
[PlyCount "91"]
[EventDate "2019.08.10"]
[EventType "tourn"]
[EventCountry "SWE"]
[SourceTitle "playchess.com"]
[Source "ChessBase"]
[SourceQuality "1"]
[TimeControl "40/5400+30:1800+30"]

1. d4 {[%emt 0:00:00]} g6 {[%emt 0:00:00]} 2. c4 {[%emt 0:00:00]} Bg7 {[%emt 0:00:00]} 3. Nf3 {[%emt 0:00:00]} d6 {[%emt 0:00:00]} 4. Nc3 {[%emt 0:00:00]} Nf6 {[%emt 0:00:00]} 5. e4 {[%emt 0:00:00]} O-O {[%emt 0:00:00]} 6. Be2 {[%emt 0:00:05]} e5 $14 {[%emt 0:00:12]} 7. O-O {[%emt 0:00:07]} exd4 {[%emt 0:00:00]} 8. Nxd4 {[%emt 0:00:05]} Re8 {[%emt 0:00:35]} 9. f3 {[%emt 0:00:50]} c6 {[%emt 0:00:00]} 10. Kh1 {[%emt 0:00:34]} Nbd7 {[%emt 0:00:00]} 11. Bg5 {[%emt 0:13:12]} Qb6 {[%emt 0:00:43]} 12. Nb3 {[%emt 0:00:11]} a5 {[%emt 0:00:57]} 13. Qd2 {[%emt 0:01:25]} a4 {[%emt 0:29:27]} 14. Be3 {[%emt 0:02:00]} Qd8 {[%emt 0:00:47]} 15. Nd4 {[%emt 0:01:14]} Qe7 {[%emt 0:21:24]} 16. Bg5 {[%emt 0:04:10]} Nc5 {[%emt 0:03:25]} 17. Rad1 {[%emt 0:03:52]} Qf8 {[%emt 0:05:26]} 18. Rfe1 {[%emt 0:05:08]} Nfd7 {[%emt 0:05:41]} 19. Bf1 {[%emt 0:02:33]} Ne5 {[%emt 0:03:39]} 20. Qc2 {[%emt 0:20:43]} h6 {[%emt 0:08:54]} 21. Bh4 {[%emt 0:03:27]} g5 {[%emt 0:04:26]} 22. Bf2 {[%emt 0:00:50]} Ng6 {[%emt 0:01:35]} 23. Nce2 {[%emt 0:05:12]} Be5 {[%emt 0:01:17]} 24. Ng3 {[%emt 0:00:25]} Ne6 {[%emt 0:02:34]} 25. Ndf5 {[%emt 0:03:13]} Ngf4 {[%emt 0:01:13]} 26. Rd2 {[%emt 0:03:17]} Kh7 {[%emt 0:03:25]} 27. Red1 {[%emt 0:00:11]} Rd8 {[%emt 0:00:47]} 28. Nxd6 {[%emt 0:02:57]} c5 {[%emt 0:03:51]} 29. Ngf5 {[%emt 0:01:04]} b6 {[%emt 0:00:35]} 30. Nxc8 {[%emt 0:01:36]} Raxc8 {[%emt 0:00:11]} 31. Qxa4 {[%emt 0:05:00]} Nd4 {[%emt 0:00:42]} 32. Bxd4 {[%emt 0:00:24]} cxd4 {[%emt 0:00:48]} 33. Nxd4 {[%emt 0:03:30]} Qc5 {[%emt 0:00:52]} 34. b4 {[%emt 0:03:27]} Qd6 {[%emt 0:02:44]} 35. Nb3 {[%emt 0:03:22]} Qf6 {[%emt 0:00:01]} 36. c5 {[%emt 0:05:17]} Ne6 {[%emt 0:01:10]} 37. Rxd8 {[%emt 0:03:34]} Rxd8 {[%emt 0:00:26]} 38. Rxd8 {[%emt 0:00:15]} Qf4 {[%emt 0:00:37]} 39. g3 {[%emt 0:00:18]} Qxf3+ {[%emt 0:00:01]} 40. Bg2 {[%emt 0:00:15]} Qe2 {[%emt 0:00:13]} 41. Nd2 {[%emt 0:33:07]} Nxd8 {[%emt 0:03:24]} 42. Qd7 {[%emt 0:00:00]} bxc5 {[%emt 0:10:07]} 43. bxc5 {[%emt 0:00:00]} Bf6 {[%emt 0:07:30]} 44. c6 {[%emt 0:00:00]} Qd1+ {[%emt 0:03:57]} 45. Bf1 {[%emt 0:00:00]} Nxc6 {[%emt 0:00:16]} 46. Qxc6 {[%emt 0:00:00]} 1-0

[Event "Manhem Chess Week-Elo 2019"]
[Site "Moelnlycke"]
[Date "2019.08.15"]
[Round "6.3"]
[White "Fransson, Lennart"]
[Black "Moller, Mikael"]
[Result "1/2-1/2"]
[ECO "A03"]
[WhiteElo "2014"]
[BlackElo "1957"]
[Annotator "NA"]
[PlyCount "216"]
[EventDate "2019.08.10"]
[EventType "tourn"]
[EventCountry "SWE"]
[SourceTitle "playchess.com"]
[Source "ChessBase"]
[SourceQuality "1"]
[TimeControl "40/5400+30:1800+30"]

1. f4 {[%emt 0:00:44]} d5 {[%emt 0:00:00]} 2. e3 {[%emt 0:00:13]} c5 {[%emt 0:00:00]} 3. Nf3 {[%emt 0:00:13]} Nc6 {[%emt 0:00:02]} 4. Be2 {[%emt 0:00:10]} g6 {[%emt 0:00:06]} 5. O-O {[%emt 0:00:14]} Bg7 {[%emt 0:00:05]} 6. Qe1 {[%emt 0:03:23]} e5 {[%emt 0:01:26]} 7. fxe5 {[%emt 0:02:34]} Nxe5 {[%emt 0:00:10]} 8. Qg3 {[%emt 0:01:15]} Qd6 {[%emt 0:02:20]} 9. Bb5+ {[%emt 0:01:22]} Ke7 {[%emt 0:08:03]} 10. d4 {[%emt 0:04:33]} Nxf3+ {[%emt 0:01:53]} 11. Qxf3 {[%emt 0:00:33]} Nf6 {[%emt 0:00:38]} 12. dxc5 {[%emt 0:05:04]} Qxc5 {[%emt 0:00:20]} 13. Nc3 {[%emt 0:00:11]} Rd8 {[%emt 0:05:55]} 14. Kh1 {[%emt 0:10:09]} Be6 {[%emt 0:06:39]} 15. Ba4 {[%emt 0:09:59]} Kf8 {[%emt 0:11:06]} 16. Bb3 {[%emt 0:01:36]} Qc6 {[%emt 0:08:05]} 17. Ba4 {[%emt 0:14:08]} Qc4 {[%emt 0:04:33]} 18. Bb5 {[%emt 0:02:32]} Qg4 {[%emt 0:01:47]} 19. Be2 {[%emt 0:02:46]} Qxf3 {[%emt 0:01:09]} 20. Bxf3 {[%emt 0:00:18]} Bf5 {[%emt 0:00:46]} 21. Bd1 {[%emt 0:07:00]} Ne4 {[%emt 0:01:21]} 22. Nb5 {[%emt 0:02:39]} Bd7 {[%emt 0:13:47]} 23. Nd4 {[%emt 0:04:34]} Kg8 {[%emt 0:00:15]} 24. Kg1 {[%emt 0:06:27]} Re8 {[%emt 0:00:13]} 25. Bf3 {[%emt 0:00:57]} Rac8 {[%emt 0:03:28]} 26. c3 {[%emt 0:00:15]} Re5 {[%emt 0:01:34]} 27. Bxe4 {[%emt 0:05:58]} Rxe4 {[%emt 0:00:27]} 28. Bd2 {[%emt 0:02:34]} Rce8 {[%emt 0:01:08]} 29. Rfe1 {[%emt 0:01:28]} Be5 {[%emt 0:04:13]} 30. a4 {[%emt 0:01:28]} a5 {[%emt 0:00:57]} 31. Nc2 {[%emt 0:01:41]} Bxa4 {[%emt 0:02:03]} 32. Nd4 {[%emt 0:00:24]} Bc6 {[%emt 0:09:19]} 33. Rxa5 {[%emt 0:00:48]} Bc7 {[%emt 0:00:12]} 34. Ra7 {[%emt 0:03:27]} Bb6 {[%emt 0:03:10]} 35. Nxc6 {[%emt 0:00:43]} bxc6 {[%emt 0:00:05]} 36. Ra6 {[%emt 0:00:11]} Rb8 {[%emt 0:00:12]} 37. Kf2 {[%emt 0:00:37]} f5 {[%emt 0:00:43]} 38. b4 {[%emt 0:01:20]} Kf7 {[%emt 0:01:09]} 39. Ke2 {[%emt 0:00:57]} Ke7 {[%emt 0:01:57]} 40. Kd3 {[%emt 0:00:22]} Kd6 {[%emt 0:00:58]} 41. Re2 {[%emt 0:31:40]} Kc7 {[%emt 0:30:10]} 42. Ra1 {[%emt 0:02:27]} Rbe8 {[%emt 0:00:30]} 43. Rae1 {[%emt 0:00:10]} Kd6 {[%emt 0:06:57]} 44. Bc1 {[%emt 0:01:13]} g5 {[%emt 0:00:00]} 45. Ra2 {[%emt 0:00:00]} h5 {[%emt 0:00:00]} 46. Rf2 {[%emt 0:00:00]} R8e5 {[%emt 0:00:00]} 47. Rfe2 {[%emt 0:00:00]} h4 {[%emt 0:00:00]} 48. Ra2 {[%emt 0:00:00]} Re8 {[%emt 0:00:00]} 49. Ra6 {[%emt 0:00:00]} Kc7 {[%emt 0:00:00]} 50. Ra2 {[%emt 0:00:00]} g4 {[%emt 0:00:00]} 51. Rc2 {[%emt 0:00:00]} Kd6 {[%emt 0:00:00]} 52. Rf2 {[%emt 0:00:00]} R8e5 {[%emt 0:00:00]} 53. Ra2 {[%emt 0:00:00]} Re8 {[%emt 0:00:00]} 54. Rf2 {[%emt 0:00:00]} R8e5 {[%emt 0:00:00]} 55. Rfe2 {[%emt 0:00:00]} g3 {[%emt 0:00:00]} 56. hxg3 {[%emt 0:00:00]} hxg3 {[%emt 0:00:00]} 57. Rh1 {[%emt 0:00:00]} Re6 {[%emt 0:00:00]} 58. Rf1 {[%emt 0:00:00]} R6e5 {[%emt 0:00:00]} 59. Rf3 {[%emt 0:00:00]} Rg4 {[%emt 0:00:00]} 60. Bd2 {[%emt 0:00:00]} Ke6 {[%emt 0:00:00]} 61. Be1 {[%emt 0:00:00]} Ree4 {[%emt 0:00:00]} 62. Rxg3 {[%emt 0:00:00]} Rxg3 {[%emt 0:00:00]} 63. Bxg3 {[%emt 0:00:00]} c5 {[%emt 0:00:44]} 64. bxc5 {[%emt 0:00:00]} Bxc5 {[%emt 0:00:05]} 65. Bf4 {[%emt 0:00:00]} Ra4 {[%emt 0:02:45]} 66. g3 {[%emt 0:01:19]} Ra1 {[%emt 0:00:27]} 67. Rh2 {[%emt 0:00:27]} Rd1+ {[%emt 0:04:09]} 68. Kc2 {[%emt 0:00:42]} Re1 {[%emt 0:00:30]} 69. Rh6+ {[%emt 0:00:23]} Kf7 {[%emt 0:01:28]} 70. Kd2 {[%emt 0:00:06]} Ra1 {[%emt 0:00:14]} 71. Rc6 {[%emt 0:00:49]} Ra5 {[%emt 0:00:07]} 72. Be5 {[%emt 0:00:33]} Be7 {[%emt 0:00:27]} 73. Ke2 {[%emt 0:00:59]} Ra4 {[%emt 0:00:12]} 74. Bd4 {[%emt 0:00:14]} Ra1 {[%emt 0:01:01]} 75. Rb6 {[%emt 0:00:39]} Rh1 {[%emt 0:00:43]} 76. Kf2 {[%emt 0:02:27]} Ra1 {[%emt 0:00:07]} 77. Be5 {[%emt 0:03:13]} Rc1 {[%emt 0:00:26]} 78. Ke2 {[%emt 0:00:37]} Ra1 {[%emt 0:00:06]} 79. Kd2 {[%emt 0:00:38]} Rg1 {[%emt 0:00:24]} 80. Kc2 {[%emt 0:00:50]} Re1 {[%emt 0:00:08]} 81. Bf4 {[%emt 0:00:26]} Rg1 {[%emt 0:00:23]} 82. Rh6 {[%emt 0:01:00]} Re1 {[%emt 0:00:28]} 83. Rh2 {[%emt 0:01:45]} Ke6 {[%emt 0:00:15]} 84. Rh6+ {[%emt 0:00:52]} Kf7 {[%emt 0:00:03]} 85. Ra6 {[%emt 0:00:06]} Rg1 {[%emt 0:00:14]} 86. Ra7 {[%emt 0:01:15]} Ke6 {[%emt 0:00:04]} 87. Rb7 {[%emt 0:00:57]} Bc5 {[%emt 0:00:38]} 88. Rc7 {[%emt 0:00:22]} Be7 {[%emt 0:00:15]} 89. c4 {[%emt 0:00:48]} dxc4 {[%emt 0:00:47]} 90. Rxc4 {[%emt 0:00:11]} Re1 {[%emt 0:00:19]} 91. Ra4 {[%emt 0:00:38]} Rg1 {[%emt 0:00:12]} 92. Kd2 {[%emt 0:01:05]} Rb1 {[%emt 0:00:18]} 93. Ra6+ {[%emt 0:00:10]} Kd5 {[%emt 0:00:17]} 94. Ra5+ {[%emt 0:00:15]} Ke6 {[%emt 0:00:07]} 95. Re5+ {[%emt 0:00:06]} Kf6 {[%emt 0:00:32]} 96. Rd5 {[%emt 0:01:04]} Ke6 {[%emt 0:00:11]} 97. Rd3 {[%emt 0:00:24]} Bc5 {[%emt 0:00:52]} 98. Kc2 {[%emt 0:00:13]} Rg1 {[%emt 0:00:35]} 99. Rd8 {[%emt 0:00:14]} Be7 {[%emt 0:00:27]} 100. Re8 {[%emt 0:00:31]} Kf7 {[%emt 0:00:09]} 101. Rb8 {[%emt 0:00:11]} Bf6 {[%emt 0:00:42]} 102. Ra8 {[%emt 0:01:13]} Ke6 {[%emt 0:00:16]} 103. Kd3 {[%emt 0:00:09]} Rd1+ {[%emt 0:00:12]} 104. Ke2 {[%emt 0:00:34]} Rg1 {[%emt 0:00:16]} 105. Kf2 {[%emt 0:00:11]} Rb1 {[%emt 0:00:18]} 106. Rc8 {[%emt 0:00:16]} Ra1 {[%emt 0:01:35]} 107. Rc2 {[%emt 0:00:17]} Rb1 {[%emt 0:00:19]} 108. Kg2 {[%emt 0:00:30]} Rb2 {[%emt 0:00:38]} 1/2-1/2

[Event "Manhem Chess Week-Elo 2019"]
[Site "Moelnlycke"]
[Date "2019.08.15"]
[Round "6.4"]
[White "Olsson, William"]
[Black "Bergre, Joachim"]
[Result "1/2-1/2"]
[ECO "A36"]
[WhiteElo "2113"]
[BlackElo "1928"]
[Annotator "NA"]
[PlyCount "88"]
[EventDate "2019.08.10"]
[EventType "tourn"]
[EventCountry "SWE"]
[SourceTitle "playchess.com"]
[Source "ChessBase"]
[SourceQuality "1"]
[TimeControl "40/5400+30:1800+30"]

1. c4 {[%emt 0:00:00]} Nf6 {[%emt 0:00:04]} 2. Nc3 {[%emt 0:00:00]} c5 {[%emt 0:01:05]} 3. g3 {[%emt 0:00:13]} Nc6 {[%emt 0:00:39]} 4. Bg2 {[%emt 0:00:00]} g6 {[%emt 0:00:15]} 5. d3 {[%emt 0:00:00]} Bg7 {[%emt 0:00:31]} 6. e4 {[%emt 0:00:14]} O-O {[%emt 0:01:59]} 7. Nge2 {[%emt 0:00:05]} a6 {[%emt 0:00:50]} 8. O-O {[%emt 0:02:22]} Rb8 {[%emt 0:00:20]} 9. a4 {[%emt 0:00:25]} d6 {[%emt 0:02:34]} 10. h3 {[%emt 0:00:38]} Bd7 {[%emt 0:00:18]} 11. Be3 {[%emt 0:00:16]} Qc8 {[%emt 0:10:49]} 12. Kh2 {[%emt 0:00:57]} Ne8 {[%emt 0:05:30]} 13. Qb1 {[%emt 0:10:14]} b6 {[%emt 0:05:18]} 14. Rd1 {[%emt 0:04:06]} Nc7 {[%emt 0:07:49]} 15. Qc1 {[%emt 0:10:47]} b5 {[%emt 0:01:52]} 16. axb5 {[%emt 0:03:32]} axb5 {[%emt 0:00:19]} 17. cxb5 {[%emt 0:01:14]} Nxb5 {[%emt 0:00:17]} 18. Nxb5 {[%emt 0:00:56]} Rxb5 {[%emt 0:00:12]} 19. Nc3 {[%emt 0:00:26]} Rb3 {[%emt 0:04:05]} 20. Rd2 {[%emt 0:06:04]} Qb8 {[%emt 0:06:56]} 21. Bf3 {[%emt 0:01:21]} Nd4 {[%emt 0:04:51]} 22. Bd1 {[%emt 0:00:49]} Rb7 {[%emt 0:00:49]} 23. Ra3 {[%emt 0:04:09]} Be6 {[%emt 0:04:38]} 24. Qa1 {[%emt 0:06:52]} Bb3 {[%emt 0:07:59]} 25. Bxd4 {[%emt 0:03:30]} Bxd4 {[%emt 0:01:11]} 26. Bf3 {[%emt 0:01:09]} Be6 {[%emt 0:08:54]} 27. Bg2 {[%emt 0:03:19]} Rb3 {[%emt 0:01:17]} 28. Ra7 {[%emt 0:08:48]} Bf6 {[%emt 0:02:13]} 29. f4 {[%emt 0:02:10]} Qb4 {[%emt 0:05:43]} 30. Ra4 {[%emt 0:00:27]} Qb8 {[%emt 0:01:40]} 31. Re2 {[%emt 0:06:46]} Bd4 {[%emt 0:02:00]} 32. Qc1 {[%emt 0:02:36]} Bd7 {[%emt 0:01:11]} 33. Ra2 {[%emt 0:01:12]} e6 {[%emt 0:00:54]} 34. Rc2 {[%emt 0:03:00]} Qb6 {[%emt 0:02:26]} 35. Bf3 {[%emt 0:03:48]} Rb8 {[%emt 0:01:16]} 36. Bd1 {[%emt 0:01:01]} Bc6 {[%emt 0:04:13]} 37. Re2 {[%emt 0:02:07]} Rb4 {[%emt 0:01:53]} 38. b3 {[%emt 0:03:05]} Qd8 {[%emt 0:00:56]} 39. Nb1 {[%emt 0:02:26]} Ra8 {[%emt 0:02:07]} 40. Rxa8 {[%emt 0:05:53]} Qxa8 {[%emt 0:00:59]} 41. Na3 {[%emt 0:30:12]} Rb7 {[%emt 0:06:25]} 42. Nc2 {[%emt 0:00:00]} Bg7 {[%emt 0:01:54]} 43. Ne3 {[%emt 0:00:00]} Ra7 {[%emt 0:01:13]} 44. Qc2 {[%emt 0:00:00]} Bd4 {[%emt 0:02:18]} 1/2-1/2

[Event "Manhem Chess Week-Elo 2019"]
[Site "Moelnlycke"]
[Date "2019.08.15"]
[Round "6.5"]
[White "Bohlin, Jan"]
[Black "Ziegler, Nathalie"]
[Result "1-0"]
[ECO "E81"]
[WhiteElo "1724"]
[BlackElo "1846"]
[Annotator "NA"]
[PlyCount "153"]
[EventDate "2019.08.10"]
[EventType "tourn"]
[EventCountry "SWE"]
[SourceTitle "playchess.com"]
[Source "ChessBase"]
[SourceQuality "1"]
[TimeControl "40/5400+30:1800+30"]

1. d4 {[%emt 0:00:00]} Nf6 {[%emt 0:02:06]} 2. c4 {[%emt 0:00:00]} g6 {[%emt 0:00:04]} 3. Nc3 {[%emt 0:00:00]} Bg7 {[%emt 0:00:05]} 4. e4 {[%emt 0:00:01]} d6 {[%emt 0:00:01]} 5. f3 {[%emt 0:00:07]} O-O {[%emt 0:00:55]} 6. Bg5 {[%emt 0:00:05]} h6 {[%emt 0:00:08]} 7. Be3 {[%emt 0:00:05]} c6 {[%emt 0:00:21]} 8. Qd2 {[%emt 0:00:20]} h5 {[%emt 0:02:26]} 9. Bd3 {[%emt 0:05:33]} a6 {[%emt 0:15:40]} 10. Nge2 {[%emt 0:09:21]} b5 {[%emt 0:01:02]} 11. cxb5 {[%emt 0:05:09]} axb5 {[%emt 0:00:14]} 12. O-O {[%emt 0:15:39]} b4 {[%emt 0:10:31]} 13. Nd1 {[%emt 0:01:29]} Qa5 {[%emt 0:01:36]} 14. Nf2 {[%emt 0:04:05]} Bb7 {[%emt 0:11:25]} 15. Nc1 {[%emt 0:06:06]} Nbd7 {[%emt 0:04:00]} 16. Nb3 {[%emt 0:01:20]} Qb6 17. Rfc1 {[%emt 0:07:39]} Rfc8 {[%emt 0:03:09]} 18. Kh1 {[%emt 0:04:55]} Ba6 {[%emt 0:01:34]} 19. Bxa6 {[%emt 0:00:51]} Rxa6 {[%emt 0:02:06]} 20. Nd3 {[%emt 0:16:55]} Rb8 {[%emt 0:06:48]} 21. Rc4 {[%emt 0:00:48]} Ra4 {[%emt 0:02:56]} 22. Rac1 {[%emt 0:00:00]} Rxa2 23. Rxc6 {[%emt 0:00:30]} Qb5 {[%emt 0:06:40]} 24. R6c4 {[%emt 0:01:51]} Ra4 25. R4c2 {[%emt 0:03:15]} Kh7 {[%emt 0:03:03]} 26. g3 {[%emt 0:02:26]} Ra7 {[%emt 0:01:00]} 27. d5 {[%emt 0:00:00]} Rab7 {[%emt 0:06:17]} 28. Ra1 {[%emt 0:04:53]} Ne5 {[%emt 0:02:45]} 29. Nxe5 {[%emt 0:00:00]} dxe5 {[%emt 0:00:01]} 30. Kg2 {[%emt 0:00:00]} Qe8 {[%emt 0:01:21]} 31. Rac1 {[%emt 0:00:37]} Qd8 {[%emt 0:01:57]} 32. Nc5 {[%emt 0:02:17]} Rb6 {[%emt 0:01:11]} 33. Nd3 {[%emt 0:01:06]} Rb5 {[%emt 0:00:23]} 34. Qe2 {[%emt 0:04:27]} Ne8 {[%emt 0:01:49]} 35. Nc5 {[%emt 0:01:19]} Nc7 {[%emt 0:02:25]} 36. Qf2 {[%emt 0:01:33]} Ra5 {[%emt 0:07:09]} 37. Nb3 {[%emt 0:00:42]} Nb5 {[%emt 0:00:24]} 38. Nxa5 {[%emt 0:00:17]} Qxa5 {[%emt 0:00:01]} 39. Rd1 {[%emt 0:01:46]} Nd4 {[%emt 0:00:29]} 40. Bxd4 {[%emt 0:00:35]} exd4 {[%emt 0:00:08]} 41. f4 {[%emt 0:03:26]} b3 {[%emt 0:02:17]} 42. Rcd2 {[%emt 0:01:26]} Rc8 {[%emt 0:00:29]} 43. Qf3 {[%emt 0:05:05]} Qb4 {[%emt 0:12:42]} 44. e5 {[%emt 0:05:28]} Rc2 {[%emt 0:09:09]} 45. Qd3 {[%emt 0:01:54]} Qa4 {[%emt 0:00:22]} 46. Rxc2 {[%emt 0:02:51]} bxc2 {[%emt 0:00:13]} 47. Rc1 {[%emt 0:00:39]} Qa2 {[%emt 0:02:15]} 48. Qxd4 {[%emt 0:03:18]} f6 {[%emt 0:00:02]} 49. Rxc2 {[%emt 0:01:07]} fxe5 {[%emt 0:00:23]} 50. fxe5 {[%emt 0:00:20]} Qa5 {[%emt 0:02:16]} 51. Qe4 {[%emt 0:01:11]} Qb5 {[%emt 0:00:42]} 52. d6 {[%emt 0:03:02]} exd6 {[%emt 0:04:47]} 53. exd6 {[%emt 0:00:12]} Qd7 {[%emt 0:02:23]} 54. Qf4 {[%emt 0:04:14]} Qb7+ {[%emt 0:00:43]} 55. Qf3 {[%emt 0:00:17]} Qd7 {[%emt 0:00:07]} 56. Rd2 {[%emt 0:00:28]} Bh6 {[%emt 0:00:39]} 57. Rd3 {[%emt 0:00:17]} Bg7 {[%emt 0:00:11]} 58. b4 {[%emt 0:00:22]} Be5 {[%emt 0:02:08]} 59. h4 {[%emt 0:00:48]} Qe6 {[%emt 0:00:57]} 60. d7 {[%emt 0:01:03]} Qa2+ {[%emt 0:00:48]} 61. Qf2 {[%emt 0:00:24]} Qa8+ {[%emt 0:00:04]} 62. Kh2 {[%emt 0:00:17]} Qd8 {[%emt 0:00:40]} 63. Qf7+ {[%emt 0:00:35]} Kh6 {[%emt 0:00:05]} 64. Qe8 {[%emt 0:00:37]} Qxh4+ {[%emt 0:00:15]} 65. Kg1 {[%emt 0:01:55]} Bd4+ {[%emt 0:00:15]} 66. Rxd4 {[%emt 0:00:43]} Qxd4+ {[%emt 0:00:07]} 67. Kf1 {[%emt 0:00:23]} Qd1+ {[%emt 0:00:44]} 68. Kf2 {[%emt 0:00:22]} Qd2+ {[%emt 0:00:31]} 69. Kf3 {[%emt 0:00:17]} Qd5+ {[%emt 0:01:17]} 70. Ke3 {[%emt 0:01:05]} Qb3+ {[%emt 0:00:34]} 71. Kd4 {[%emt 0:01:10]} Qxb4+ {[%emt 0:00:24]} 72. Kd5 {[%emt 0:00:25]} Qb5+ {[%emt 0:01:01]} 73. Kd6 {[%emt 0:01:11]} Qb6+ {[%emt 0:00:30]} 74. Ke7 {[%emt 0:00:38]} Qc5+ {[%emt 0:00:37]} 75. Kf7 {[%emt 0:00:27]} Qf5+ {[%emt 0:00:59]} 76. Kg8 {[%emt 0:00:25]} Qf6 {[%emt 0:00:25]} 77. Qf8+ {[%emt 0:00:10]} 1-0